bitfinex/quotes_SOLUSD_20250419
["timestamp","ask_amount","ask_price","bid_price","bid_amount"]
[1745030700294,1.33078958,137.03,136.74,21.96944712]
[1745030700791,2.73618418,137.02,136.74,21.96944712]
[1745030701198,5.47247376,137.01,136.74,21.96944712]
[1745030701685,2.73618418,137.0,136.74,21.96944712]
[1745030702194,5.47247376,136.99,136.74,21.96944712]
[1745030702698,2.73618418,136.98,136.74,21.96944712]
[1745030703682,2.73618418,136.97,136.74,21.96944712]
[1745030704499,2.73618418,136.96,136.74,21.96944712]
[1745030705499,1.33078958,137.03,136.74,21.96944712]
[1745030708087,10.10860991,137.03,136.74,21.96944712]
[1745030708898,1.33078958,137.03,136.74,21.96944712]
[1745030709105,8.77782033,137.02,136.74,21.96944712]
[1745030709305,1.33545475,137.01,136.74,21.96944712]
[1745030709506,10.11327508,137.01,136.74,21.96944712]
[1745030709806,1.33545475,137.0,136.74,21.96944712]
[1745030730425,10.11327508,137.0,136.74,21.96944712]
[1745030733006,1.33545475,137.0,136.74,21.96944712]
[1745030737029,2.24445838,137.0,136.74,21.96944712]
[1745030737229,10.11327508,137.0,136.74,21.96944712]
[1745030738225,8.77782033,136.99,136.74,21.96944712]
[1745030738426,17.24967339,136.99,136.74,21.96944712]
[1745030744537,8.77782033,136.99,136.74,21.96944712]
[1745030750945,1.33545475,137.0,136.74,21.96944712]
[1745030751244,9.77946449,136.99,136.74,21.96944712]
[1745030759275,1.33545475,137.0,136.74,21.96944712]
[1745030759572,9.77946449,136.99,136.74,21.96944712]
[1745030773890,8.47185306,137.05,136.74,21.96944712]
[1745030774189,9.77946449,137.04,136.74,21.96944712]
[1745030774389,18.25131755,137.04,136.74,21.96944712]
[1745030779396,9.77946449,137.04,136.74,21.96944712]
[1745030779582,9.80730781,137.03,136.74,21.96944712]
[1745030779786,7.78228137,137.02,136.74,21.96944712]
[1745030784796,9.80730781,137.03,136.74,21.96944712]
[1745030784985,1.33545475,137.03,136.74,21.96944712]
[1745030787909,10.57744174,137.03,136.74,21.96944712]
[1745030792012,1.33545475,137.03,136.74,21.96944712]
[1745030792311,9.45785332,137.06,136.74,21.96944712]
[1745030792513,9.24198699,137.05,136.74,21.96944712]
[1745030794117,10.57744174,137.05,136.74,21.96944712]
[1745030795821,1.33545475,137.04,136.74,21.96944712]
[1745030796116,8.33251437,137.03,136.74,21.96944712]
[1745030808929,5.83251437,137.03,136.74,21.96944712]
[1745030811431,1.33545475,137.04,136.74,21.96944712]
[1745030815435,1.33545475,137.04,136.74,31.09121081]
[1745030818238,1.33545475,137.04,136.74,21.96944712]
[1745030823245,8.54330967,137.04,136.74,21.96944712]
[1745030830259,8.19164644,137.03,136.74,21.96944712]
[1745030831555,16.7001138,137.03,136.74,21.96944712]
[1745030833850,8.50846736,137.02,136.74,21.96944712]
[1745030834036,9.00678847,137.01,136.74,21.96944712]
[1745030836465,15.96432007,137.04,136.74,21.96944712]
[1745030837768,1.33545475,137.04,136.74,21.96944712]
[1745030839766,1.33545475,137.04,136.74,30.58565526]
[1745030843276,1.33545475,137.04,136.74,38.99435946]
[1745030845277,1.33545475,137.04,136.75,17.02491234]
[1745030845579,1.33545475,137.04,136.75,48.91301003]
[1745030848375,1.33545475,137.04,136.75,17.02491234]
[1745030859285,1.33545475,137.04,136.76,26.20520346]
[1745030859470,1.33545475,137.04,136.77,8.61620814]
[1745030859672,1.33545475,137.04,136.78,34.61390766]
[1745030859886,1.33545475,137.04,136.79,34.3032214]
[1745030860077,1.33545475,137.04,136.8,34.61390766]
[1745030860277,1.33545475,137.04,136.81,8.61620814]
[1745030860490,1.33545475,137.04,136.82,8.4087042]
[1745030860669,1.33545475,137.04,136.83,8.61620814]
[1745030860863,0.063,137.1,136.84,8.4087042]
[1745030861067,0.063,137.1,136.85,8.61620814]
[1745030861691,0.063,137.1,136.86,8.4087042]
[1745030861986,0.063,137.1,136.87,8.61620814]
[1745030863089,0.063,137.1,136.87,17.02491234]
[1745030863990,0.063,137.1,136.88,8.4087042]
[1745030864177,0.063,137.1,136.88,20.68761826]
[1745030864991,0.063,137.1,136.89,8.61620814]
[1745030865689,0.063,137.1,136.89,17.02491234]
[1745030866588,0.063,137.1,136.9,8.4087042]
[1745030866894,0.063,137.1,136.91,8.61620814]
[1745030867092,0.063,137.1,136.92,8.4087042]
[1745030867297,0.063,137.1,136.94,1.33530847]
[1745030867594,0.063,137.1,136.95,17.02491234]
[1745030868072,0.063,137.1,136.95,18.36012331]
[1745030868590,0.063,137.1,136.96,1.33511348]
[1745030868790,0.063,137.1,136.97,8.61620814]
[1745030869194,1.64994394,137.2,136.97,8.61620814]
[1745030869393,0.063,137.2,136.97,9.95122414]
[1745030869782,0.063,137.2,136.98,8.4087042]
[1745030869984,0.063,137.2,136.99,8.61620814]
[1745030870297,0.063,137.2,136.99,18.35973344]
[1745030870497,0.063,137.2,137.0,8.4087042]
[1745030870803,0.063,137.2,137.01,8.61620814]
[1745030871101,0.063,137.2,137.01,17.02491234]
[1745030871400,0.063,137.2,137.02,1.33452884]
[1745030871596,0.063,137.2,137.02,9.95073698]
[1745030872080,0.063,137.2,137.02,1.33452884]
[1745030872486,0.063,137.2,137.02,9.95073698]
[1745030873005,0.063,137.2,137.03,8.61620814]
[1745030874590,0.063,137.2,137.04,1.33433408]
[1745030875197,0.063,137.2,137.03,31.82886501]
[1745030877206,0.063,137.2,136.97,17.02491234]
[1745030877407,0.063,137.2,136.98,1.33491854]
[1745030878098,0.063,137.2,136.99,8.61620814]
[1745030878301,0.063,137.2,137.0,1.33472367]
[1745030878506,0.063,137.2,137.0,12.80490277]
[1745030879813,0.063,137.2,137.0,9.95093181]
[1745030880412,0.063,137.2,137.0,1.33472367]
[1745030885715,0.063,137.2,136.95,11.4701791]
[1745030885913,0.063,137.2,136.95,12.80539007]
[1745030886414,0.063,137.2,136.95,21.42159821]
[1745030887007,0.063,137.2,136.95,9.95141911]
[1745030889613,0.063,137.2,136.95,1.33521097]
[1745030890622,0.063,137.2,136.95,9.95141911]
[1745030891032,0.063,137.2,136.96,8.61620814]
[1745030891321,0.063,137.2,136.97,1.335016]
[1745030893522,0.063,137.2,136.97,9.95122414]
[1745030893911,0.063,137.2,136.97,18.35992834]
[1745030894112,0.063,137.2,136.98,8.61620814]
[1745030894313,0.063,137.2,136.99,1.3348211]
[1745030894513,0.063,137.2,137.0,17.02491234]
[1745030894713,0.063,137.2,137.01,1.33462625]
[1745030894915,0.063,137.2,137.01,9.95083439]
[1745030895626,0.063,137.2,137.01,18.35953859]
[1745030896129,0.063,137.2,137.02,8.61620814]
[1745030896427,0.063,137.2,137.03,1.33443145]
[1745030899931,0.063,137.2,137.0,11.4701791]
[1745030900327,0.063,137.2,136.95,19.8788833]
[1745030900533,0.063,137.2,136.95,28.49509144]
[1745030901031,0.063,137.2,136.96,1.33511348]
[1745030901926,0.063,137.2,136.96,12.80529258]
[1745030902233,0.063,137.2,136.97,17.02491234]
[1745030902412,0.063,137.2,136.98,1.33491854]
[1745030902611,0.063,137.2,136.98,9.95112668]
[1745030908346,0.063,137.2,136.99,8.61620814]
[1745030908644,0.063,137.2,137.0,1.33472367]
[1745030909344,0.063,137.2,137.0,9.95093181]
[1745030912548,0.063,137.2,137.01,8.61620814]
[1745030913557,0.063,137.2,137.01,17.02491234]
[1745030916060,0.063,137.2,137.01,28.49509144]
[1745030916962,0.063,137.2,137.02,8.4087042]
[1745030917159,0.063,137.2,137.03,8.61620814]
[1745030918255,0.063,137.2,137.04,8.4087042]
[1745030918454,0.063,137.2,137.05,8.61620814]
[1745030918653,0.063,137.2,137.06,8.4087042]
[1745030918854,0.063,137.2,137.07,8.61620814]
[1745030919261,0.063,137.2,137.07,17.02491234]
[1745030919455,0.063,137.2,137.08,8.4087042]
[1745030919656,0.063,137.26,137.09,8.61620814]
[1745030919856,0.063,137.26,137.1,8.4087042]
[1745030920060,0.063,137.26,137.1,17.02491234]
[1745030920869,0.063,137.26,137.04,11.4701791]
[1745030921057,0.063,137.26,137.07,8.61620814]
[1745030922167,0.063,137.26,137.04,11.4701791]
[1745030924069,0.063,137.26,137.05,8.61620814]
[1745030925170,0.063,137.26,137.06,8.4087042]
[1745030925671,0.063,137.26,137.05,8.61620814]
[1745030927174,0.063,137.26,137.05,17.02491234]
[1745030927470,0.063,137.26,137.06,8.4087042]
[1745030927672,0.063,137.26,137.07,8.61620814]
[1745030928672,0.063,137.26,137.07,17.02491234]
[1745030928877,0.063,137.26,137.08,8.4087042]
[1745030929179,0.063,137.26,137.08,17.02491234]
[1745030929355,0.063,137.26,137.09,8.61620814]
[1745030930081,0.063,137.26,137.09,17.02491234]
[1745030931699,0.063,137.26,137.1,8.4087042]
[1745030931868,0.063,137.26,137.11,8.61620814]
[1745030932058,0.063,137.26,137.11,40.41709807]
[1745030936092,0.063,137.26,137.11,31.80088993]
[1745031002976,0.063,137.26,137.11,53.68113207]
[1745031004073,0.063,137.26,137.11,21.88024214]
[1745031020785,0.063,137.26,137.11,21.88024214]
[1745031077846,1.923,137.26,137.11,21.88024214]
[1745031096260,1.923,137.26,137.11,30.49645028]
[1745031101574,1.923,137.26,137.11,39.80717631]
[1745031102053,1.923,137.26,137.11,21.88024214]
[1745031149389,1.223,137.26,137.11,21.88024214]
[1745031153793,0.063,137.3,137.29,8.651]
[1745031155895,0.063,137.3,137.29,2.46350812]
[1745031194319,0.063,137.3,137.29,24.31506322]
[1745031200234,1.44751315,137.39,137.29,24.31506322]
[1745031200418,31.64807084,183.26,137.29,24.31506322]
[1745031200727,0.03,137.36,137.29,24.31506322]
[1745031242062,0.03,137.36,137.29,35.10949358]
[1745031242480,0.063,137.4,137.29,35.10949358]
[1745031243573,0.063,137.4,137.3,45.79060441]
[1745031246379,0.063,137.4,137.3,34.99617405]
[1745031302051,0.063,137.4,137.3,45.79060441]
[1745031302240,0.063,137.4,137.31,10.79443036]
[1745031302433,0.03,137.42,137.31,20.54932306]
[1745031303245,0.03,137.45,137.31,9.7548927]
[1745031304948,0.03,137.45,137.3,37.90410205]
[1745031305146,0.03,137.45,137.3,34.99617405]
[1745031321147,0.03,137.45,137.29,24.31506322]
[1745031338191,0.03,137.45,137.29,35.10949737]
[1745031341684,0.03,137.45,137.3,10.79443415]
[1745031341878,0.03,137.45,137.3,42.56089349]
[1745031349998,0.03,137.45,137.3,31.76645934]
[1745031350699,0.03,137.45,137.3,42.56089349]
[1745031350901,0.03,137.45,137.31,10.79443415]
[1745031354402,0.03,137.45,137.3,31.76645934]
[1745031355099,0.03,137.45,137.3,42.56089349]
[1745031355895,0.03,137.45,137.3,31.76645934]
[1745031356204,0.03,137.45,137.31,10.79443415]
[1745031356985,0.03,137.45,137.3,31.76645934]
[1745031357488,0.03,137.45,137.3,42.56089349]
[1745031359603,0.03,137.45,137.3,31.76645934]
[1745031360190,0.03,137.45,137.3,42.56089349]
[1745031361307,0.03,137.45,137.31,10.79443415]
[1745031363803,0.03,137.45,137.32,1.33161333]
[1745031364993,0.03,137.45,137.32,12.12604748]
[1745031366210,0.03,137.45,137.33,10.79443415]
[1745031366896,0.03,137.45,137.34,1.33141941]
[1745031367099,0.03,137.54,137.34,12.12585356]
[1745031367305,0.03,137.54,137.35,20.54932685]
[1745031367517,0.03,137.54,137.36,1.33122555]
[1745031367805,0.03,137.54,137.37,20.54932685]
[1745031367991,0.03,137.54,137.38,1.33103175]
[1745031368215,0.03,137.54,137.39,20.54932685]
[1745031368394,0.03,137.54,137.4,1.33083801]
[1745031368596,0.03,137.54,137.41,10.79443415]
[1745031368996,0.03,137.54,137.42,1.33064432]
[1745031369312,0.03,137.54,137.43,10.79443415]
[1745031369513,0.03,137.54,137.43,12.12498164]
[1745031370996,0.03,137.54,137.43,21.87987434]
[1745031371199,0.03,137.54,137.44,1.33045069]
[1745031371411,0.03,137.54,137.44,12.12488484]
[1745031372213,0.03,137.54,137.44,17.99737212]
[1745031376521,0.03,137.54,137.44,7.20293797]
[1745031376721,0.03,137.54,137.44,5.87248728]
[1745031376895,0.03,137.54,137.38,10.79443415]
[1745031377100,0.03,137.54,137.39,1.33093487]
[1745031377413,0.03,137.54,137.39,10.9144953]
[1745031385416,0.03,137.54,137.39,21.70892945]
[1745031389532,0.03,137.53,137.39,10.9144953]
[1745031391143,0.03,137.53,137.39,7.27621676]
[1745031391934,0.03,137.53,137.39,1.33093487]
[1745031394244,0.03,137.53,137.39,7.18892871]
[1745031397333,0.03,137.53,137.4,10.18100381]
[1745031397533,0.03,137.53,137.4,20.97543796]
[1745031399829,0.03,137.53,137.4,10.79443415]
[1745031403349,0.03,137.53,137.41,10.18100381]
[1745031403651,0.03,137.53,137.42,10.79443415]
[1745031403850,0.03,137.53,137.42,20.97543796]
[1745031406354,0.03,137.53,137.43,10.18100381]
[1745031406554,0.03,137.53,137.44,10.79443415]
[1745031406854,0.03,137.53,137.45,10.18100381]
[1745031407057,0.03,137.53,137.46,10.79443415]
[1745031407553,0.03,137.53,137.43,31.7287562]
[1745031407746,0.03,137.53,137.43,42.52319035]
[1745031407938,0.03,137.53,137.44,10.79443415]
[1745031409849,0.03,137.53,137.43,31.7287562]
[1745031433587,0.03,137.53,137.42,21.83088342]
[1745031433588,0.03,137.53,137.42,12.48800983]
[1745031437085,7.28913183,137.52,137.39,1.33093487]
[1745031437288,0.03,137.53,137.39,1.33093487]
[1745031441494,0.03,137.53,137.37,0.063]
[1745031442077,0.03,137.53,137.42,21.83088342]
[1745031455486,0.03,137.53,137.42,19.29796006]
[1745031463915,7.82947963,137.52,137.42,1e-08]
[1745031476122,11.38727353,137.51,137.42,1e-08]
[1745031476524,19.68968314,137.51,137.42,1e-08]
[1745031481439,8.30240961,137.5,137.42,1e-08]
[1745031482735,8.30240961,137.5,137.37,0.063]
[1745031484725,19.68968314,137.5,137.37,0.063]
[1745031486321,19.68968314,137.5,137.42,19.9306029]
[1745031487038,11.38727353,137.47,137.42,19.9306029]
[1745031488541,11.38727353,137.48,137.42,19.9306029]
[1745031491840,11.38727353,137.49,137.42,19.9306029]
[1745031492541,8.30240961,137.5,137.42,19.9306029]
[1745031497542,8.30240961,137.5,137.42,13.26719917]
[1745031498746,8.30240961,137.52,137.42,13.26719917]
[1745031499145,9.63136155,137.52,137.42,13.26719917]
[1745031501647,9.63136155,137.52,137.36,0.063]
[1745031503835,1.32895194,137.51,137.36,0.063]
[1745031504149,8.30240961,137.5,137.36,0.063]
[1745031504351,9.63136155,137.5,137.36,0.063]
[1745031505546,1.32895194,137.5,137.36,0.063]
[1745031511955,9.63136155,137.5,137.36,0.063]
[1745031512358,8.30240961,137.49,137.36,0.063]
[1745031529375,1.32895194,137.5,137.36,0.063]
[1745031529580,9.63136155,137.5,137.36,0.063]
[1745031541087,1.32895194,137.5,137.36,0.063]
[1745031541467,8.30240961,137.49,137.36,0.063]
[1745031544189,1.32895194,137.5,137.36,0.063]
[1745031544786,9.63136155,137.5,137.36,0.063]
[1745031544988,8.30240961,137.49,137.36,0.063]
[1745031546487,1.32895194,137.5,137.36,0.063]
[1745031547889,0.21586633,137.48,137.36,0.063]
[1745031550389,1.32895194,137.5,137.36,0.063]
[1745031550591,9.63136155,137.5,137.36,0.063]
[1745031553497,8.30240961,137.49,137.36,0.063]
[1745031563606,1.32895194,137.5,137.36,0.063]
[1745031577006,0.03,137.53,137.36,0.063]
[1745031577415,8.30240961,137.52,137.36,0.063]
[1745031579431,0.03,137.53,137.36,0.063]
[1745031581726,0.24586633,137.53,137.36,0.063]
[1745031587617,8.54827594,137.53,137.36,0.063]
[1745031587817,8.30240961,137.52,137.36,0.063]
[1745031597846,7.41140801,137.51,137.3,0.063]
[1745031598022,8.24776664,137.5,137.3,0.063]
[1745031600150,0.21586633,137.49,137.3,0.063]
[1745031604659,0.03,137.53,137.3,0.063]
[1745031612357,7.3603708,137.53,137.3,0.063]
[1745031612950,9.21457627,137.52,137.3,0.063]
[1745031613353,16.62598428,137.52,137.3,0.063]
[1745031614048,9.21457627,137.52,137.3,0.063]
[1745031617161,1.3317588,137.51,137.3,0.063]
[1745031617365,9.21457627,137.5,137.3,0.063]
[1745031617769,1.3317588,137.49,137.3,0.063]
[1745031618381,10.54633507,137.49,137.3,0.063]
[1745031619067,9.21457627,137.48,137.3,0.063]
[1745031619370,1.3317588,137.47,137.3,0.063]
[1745031619576,10.54633507,137.47,137.3,0.063]
[1745031620945,1.3317588,137.47,137.3,0.063]
[1745031621445,11.44920481,137.5,137.3,0.063]
[1745031622769,21.99553988,137.5,137.3,0.063]
[1745031623972,11.44920481,137.49,137.3,0.063]
[1745031627373,1.3317588,137.5,137.3,0.063]
[1745031630757,10.54633507,137.5,137.3,0.063]
[1745031630958,9.21457627,137.49,137.3,0.063]
[1745031631155,10.54633507,137.49,137.3,0.063]
[1745031632260,1.3317588,137.48,137.3,0.063]
[1745031632458,9.21457627,137.47,137.3,0.063]
[1745031632661,10.54633507,137.47,137.3,0.063]
[1745031634073,1.3317588,137.46,137.3,0.063]
[1745031634274,9.21457627,137.45,137.3,0.063]
[1745031634470,1.3317588,137.44,137.3,0.063]
[1745031634668,9.21457627,137.43,137.3,0.063]
[1745031637068,10.54633507,137.43,137.3,0.063]
[1745031637755,16.33083662,137.43,137.3,0.063]
[1745031640285,1.3317588,137.42,137.3,0.063]
[1745031640581,9.21457627,137.41,137.3,0.063]
[1745031641077,10.54633507,137.41,137.3,0.063]
[1745031641283,1.3317588,137.4,137.3,0.063]
[1745031641586,9.21457627,137.39,137.3,0.063]
[1745031641880,1.3317588,137.38,137.3,0.063]
[1745031643679,4.88572139,137.38,137.3,0.063]
[1745031644477,14.10029766,137.38,137.3,0.063]
[1745031645567,14.10029766,137.38,137.29,2.52650812]
[1745031646084,9.21457627,137.37,137.29,2.52650812]
[1745031646271,10.54633507,137.37,137.29,2.52650812]
[1745031648890,1.3317588,137.36,137.25,0.063]
[1745031649091,9.21457627,137.35,137.25,0.063]
[1745031649291,9.21457627,137.35,137.23,0.063]
[1745031649585,1.3317588,137.34,137.23,0.063]
[1745031649790,10.54633507,137.34,137.23,0.063]
[1745031651585,9.21457627,137.33,137.23,0.063]
[1745031651793,10.54633507,137.33,137.23,0.063]
[1745031652900,1.3317588,137.32,137.23,0.063]
[1745031658906,10.54633507,137.32,137.24,0.063]
[1745031660606,9.21457627,137.31,137.24,0.063]
[1745031660908,10.54633507,137.31,137.24,0.063]
[1745031661201,1.3317588,137.31,137.24,0.063]
[1745031661906,1.3317588,137.31,137.24,0.01221501]
[1745031662508,3.55396259,137.38,137.24,0.01221501]
[1745031662708,1.3317588,137.37,137.24,0.01221501]
[1745031665212,10.54633507,137.37,137.24,0.01221501]
[1745031665715,1.3317588,137.36,137.24,0.01221501]
[1745031667604,3.61998689,137.38,137.24,0.01221501]
[1745031667894,9.21457627,137.41,137.24,0.01221501]
[1745031668094,5.78450155,137.43,137.24,0.01221501]
[1745031668292,1.3317588,137.42,137.24,0.01221501]
[1745031670224,4.90858617,137.42,137.24,0.01221501]
[1745031672822,14.12316244,137.42,137.24,0.01221501]
[1745031676730,4.90858617,137.42,137.24,0.01221501]
[1745031685433,8.98828803,137.42,137.24,0.01221501]
[1745031686221,4.90858617,137.42,137.24,0.01221501]
[1745031688935,14.12316244,137.42,137.24,0.01221501]
[1745031691539,4.90858617,137.42,137.24,0.01221501]
[1745031704365,3.57682737,137.42,137.24,0.01221501]
[1745031704566,28.2822908,137.44,137.24,0.01221501]
[1745031705452,31.97436906,137.44,137.24,0.01221501]
[1745031707347,47.02644587,137.44,137.24,0.01221501]
[1745031707547,10.54633507,137.43,137.24,0.01221501]
[1745031707760,17.95774308,137.43,137.24,0.01221501]
[1745031708448,1.3317588,137.42,137.24,0.01221501]
[1745031708662,13.32067238,137.41,137.24,0.01221501]
[1745031708966,1.3317588,137.4,137.24,0.01221501]
[1745031709147,9.21457627,137.39,137.24,0.01221501]
[1745031709348,1.3317588,137.38,137.24,0.01221501]
[1745031709647,5.90926437,137.37,137.24,0.01221501]
[1745031709864,1.3317588,137.36,137.24,0.01221501]
[1745031710362,10.54633507,137.36,137.24,0.01221501]
[1745031714469,1.3317588,137.36,137.24,0.01221501]
[1745031723574,7.24102317,137.36,137.24,0.01221501]
[1745031723776,9.21457627,137.35,137.24,0.01221501]
[1745031724182,1.3317588,137.34,137.24,0.01221501]
[1745031733081,29.69459642,137.42,137.24,0.01221501]
[1745031733382,1.3317588,137.41,137.24,0.01221501]
[1745031733882,10.54633507,137.41,137.24,0.01221501]
[1745031734964,9.21457627,137.4,137.24,0.01221501]
[1745031735164,1.3317588,137.39,137.24,0.01221501]
[1745031735587,10.54633507,137.39,137.24,0.01221501]
[1745031737891,1.3317588,137.39,137.24,0.01221501]
[1745031739471,0.21586633,137.4,137.24,0.01221501]
[1745031743797,9.5595788,137.44,137.24,0.01221501]
[1745031750712,0.21586633,137.43,137.24,0.01221501]
[1745031755014,9.5595788,137.44,137.24,0.01221501]
[1745031756001,9.5595788,137.44,137.16,8.29604186]
[1745031756203,9.5595788,137.44,137.18,2.910043]
[1745031756712,0.03,137.44,137.18,2.910043]
[1745031756913,0.03,137.44,137.18,20.17735608]
[1745031757211,0.03,137.44,137.18,13.25476903]
[1745031757416,5.77297353,137.44,137.18,4.24301531]
[1745031757620,5.77297353,137.44,137.18,2.910043]
[1745031757798,5.77297353,137.44,137.16,0.0404825]
[1745031759315,5.77297353,137.44,137.16,18.64096226]
[1745031759617,5.77297353,137.44,137.16,24.41393626]
[1745031759916,5.77297353,137.44,137.17,9.01175372]
[1745031760120,5.77297353,137.44,137.18,8.25555936]
[1745031760416,5.77297353,137.44,137.17,9.01175372]
[1745031760618,5.77297353,137.44,137.18,1.33297231]
[1745031762723,5.77297353,137.44,137.16,0.0404825]
[1745031762924,9.43207765,137.44,137.16,0.0404825]
[1745031763112,5.77297353,137.44,137.16,0.0404825]
[1745031763314,5.77297353,137.44,137.17,8.25555936]
[1745031763516,5.77297353,137.44,137.17,17.26731308]
[1745031764318,5.77297353,137.44,137.17,8.25555936]
[1745031764705,5.77297353,137.44,137.16,7.14662218]
[1745031766428,9.36179866,137.44,137.16,7.14662218]
[1745031766722,9.36179866,137.44,137.16,1.37364918]
[1745031767025,9.36179866,137.44,137.17,9.01175372]
[1745031767202,9.36179866,137.44,137.17,10.34482321]
[1745031767931,9.36179866,137.44,137.17,1.33306949]
[1745031770034,9.36179866,137.44,137.17,10.34482321]
[1745031770331,9.36179866,137.44,137.17,1.33306949]
[1745031770520,9.36179866,137.44,137.17,10.34482321]
[1745031771325,9.36179866,137.44,137.17,1.33306949]
[1745031774631,9.36179866,137.44,137.18,1.45528]
[1745031779333,18.57637493,137.44,137.16,0.0404825]
[1745031779526,19.90813373,137.44,137.16,0.0404825]
[1745031780014,10.69355746,137.44,137.16,0.0404825]
[1745031780628,0.21586633,137.43,137.16,0.0404825]
[1745031780834,0.21586633,137.43,137.17,9.01175372]
[1745031782832,0.21586633,137.43,137.17,10.34482321]
[1745031784428,0.21586633,137.43,137.18,1.33297231]
[1745031784832,0.21586633,137.43,137.18,10.34472603]
[1745031785635,0.21586633,137.43,137.19,5.772973]
[1745031786433,0.21586633,137.43,137.19,16.11760187]
[1745031787944,0.21586633,137.43,137.19,10.34462887]
[1745031789441,0.21586633,137.43,137.2,10.34453172]
[1745031789738,0.21586633,137.43,137.21,1.33268087]
[1745031789937,0.21586633,137.43,137.21,10.34443459]
[1745031792133,0.21586633,137.43,137.21,1.33268087]
[1745031793943,0.21586633,137.43,137.21,10.34443459]
[1745031794239,0.21586633,137.43,137.22,9.01175372]
[1745031794824,0.21586633,137.43,137.22,18.59989683]
[1745031795021,0.21586633,137.43,137.22,10.34433747]
[1745031795541,0.21586633,137.43,137.22,1.33258375]
[1745031797647,0.21586633,137.43,137.22,10.34433747]
[1745031797835,0.21586633,137.43,137.23,9.01175372]
[1745031798227,0.21586633,137.43,137.23,10.34424036]
[1745031798427,0.21586633,137.43,137.24,1.33238955]
[1745031799044,0.03,137.44,137.24,1.33238955]
[1745031799628,0.03,137.44,137.24,10.34414327]
[1745031803528,0.03,137.44,137.24,1.33238955]
[1745031826161,0.03,137.44,137.25,9.01175372]
[1745031832978,0.03,137.44,137.24,1.33238955]
[1745031835355,0.03,137.44,137.19,3.78921342]
[1745031835556,0.03,137.44,137.2,1.332778]
[1745031838780,0.03,137.44,137.21,9.01175372]
[1745031839076,0.03,137.44,137.21,10.34443459]
[1745031839258,0.03,137.44,137.21,1.33268087]
[1745031842781,0.03,137.44,137.22,9.01175372]
[1745031843078,0.03,137.44,137.22,10.34433747]
[1745031843283,0.03,137.44,137.22,1.33258375]
[1745031845176,0.03,137.44,137.16,0.0404825]
[1745031845486,0.03,137.44,137.16,1.37364918]
[1745031847864,0.03,137.44,137.17,1.33306949]
[1745031857388,0.03,137.44,137.17,10.34482321]
[1745031858273,0.03,137.44,137.18,9.01175372]
[1745031858485,0.03,137.44,137.19,1.33287515]
[1745031863901,0.03,137.44,137.19,10.34462887]
[1745031864710,0.03,137.44,137.2,9.01175372]
[1745031864909,0.03,137.44,137.2,10.34453172]
[1745031866411,0.03,137.44,137.21,1.33268087]
[1745031866995,0.03,137.44,137.22,9.01175372]
[1745031867197,0.03,137.44,137.23,1.33248664]
[1745031869115,0.03,137.44,137.23,10.34424036]
[1745031878710,0.03,137.44,137.24,9.01175372]
[1745031878898,0.03,137.44,137.24,17.26731308]
[1745031881325,0.03,137.44,137.24,9.01175372]
[1745031881822,0.03,137.44,137.24,17.26731308]
[1745031882324,0.03,137.44,137.24,9.01175372]
[1745031882906,0.03,137.44,137.23,1.33248664]
[1745031887325,0.03,137.44,137.23,9.21584604]
[1745031888622,0.03,137.44,137.24,25.15067248]
[1745031889008,0.03,137.44,137.24,16.89511312]
[1745031897130,0.03,137.44,137.25,8.25555936]
[1745031897433,0.03,137.44,137.26,16.89511312]
[1745031898235,0.03,137.44,137.26,25.15067248]
[1745031900536,0.03,137.44,137.26,16.89511312]
[1745031901036,0.03,137.44,137.26,22.66272974]
[1745031905418,0.03,137.44,137.27,8.25555936]
[1745031905619,0.03,137.44,137.28,16.89511312]
[1745031908938,0.03,137.44,137.28,25.15067248]
[1745031920646,0.03,137.44,137.29,8.25555936]
[1745031920948,0.03,137.44,137.3,16.89511312]
[1745031921748,5.67069113,137.56,137.3,16.89511312]
[1745031922047,5.76995485,137.59,137.3,16.89511312]
[1745031922850,5.87152124,137.57,137.3,16.89511312]
[1745031924355,5.87152124,137.57,137.3,7.8833594]
[1745031925247,11.61147609,137.57,137.3,7.8833594]